bitfinex-derivatives/quotes_BTCF0:USTF0_20241116
["timestamp","ask_amount","ask_price","bid_price","bid_amount"]
[1731789174312,0.054993,90861.0,90858.0,0.14387923]
[1731789174509,0.088,90863.0,90861.0,0.054993]
[1731789174818,0.088,90863.0,90862.0,0.00343967]
[1731789175510,0.088,90863.0,90862.0,0.05848423]
[1731789176822,0.088,90863.0,90862.0,0.05848396]
[1731789177022,0.143991,90863.0,90862.0,0.05848396]
[1731789178514,0.504791,90863.0,90862.0,0.05848396]
[1731789179317,0.504791,90863.0,90862.0,0.05504456]
[1731789179918,0.536791,90863.0,90862.0,0.05504456]
[1731789182225,0.054992,90862.0,90857.0,7.876e-05]
[1731789182519,0.14939256,90858.0,90857.0,7.876e-05]
[1731789184126,0.14939256,90858.0,90857.0,0.00583876]
[1731789184629,0.14939256,90858.0,90857.0,7.876e-05]
[1731789187226,0.143115,90858.0,90857.0,7.876e-05]
[1731789187625,0.143115,90858.0,90857.0,0.00583876]
[1731789188123,0.054995,90858.0,90857.0,0.00583876]
[1731789188318,0.3608,90860.0,90857.0,0.00583876]
[1731789188518,0.3608,90860.0,90858.0,0.054994]
[1731789189126,0.3608,90860.0,90859.0,0.01031826]
[1731789189523,0.37590001,90875.0,90859.0,0.4505789]
[1731789189524,0.054987,90871.0,90859.0,0.4505789]
[1731789189729,0.054987,90871.0,90870.0,0.3608]
[1731789190229,0.054987,90871.0,90870.0,0.01031683]
[1731789190433,0.054987,90871.0,90859.0,0.00056]
[1731789190434,0.18614365,90871.0,90859.0,0.00056]
[1731789190734,0.054998,90853.0,90851.0,0.00116]
[1731789191029,0.08812,90852.0,90848.0,0.001651]
[1731789191233,0.09439756,90856.0,90848.0,0.001651]
[1731789191234,0.055,90849.0,90848.0,0.001651]
[1731789192036,0.14939756,90849.0,90848.0,0.001651]
[1731789192930,0.20555877,90849.0,90848.0,0.001651]
[1731789193132,0.11116121,90849.0,90848.0,0.001651]
[1731789195740,0.18588357,90865.0,90850.0,0.054999]
[1731789195741,0.054997,90855.0,90850.0,0.054999]
[1731789196526,0.054997,90854.0,90850.0,0.054999]
[1731789196726,0.08812,90858.0,90855.0,0.054996]
[1731789196930,0.08812,90858.0,90857.0,0.3608]
[1731789197329,0.08812,90858.0,90857.0,0.69013201]
[1731789197531,0.08812,90858.0,90857.0,0.70045105]
[1731789198035,0.08812,90858.0,90857.0,1.01321951]
[1731789198235,0.08812,90858.0,90857.0,0.37111904]
[1731789198739,0.08812,90869.0,90861.0,0.054993]
[1731789198934,0.14385883,90869.0,90865.0,0.3608]
[1731789199523,0.09439756,90866.0,90858.0,0.32930534]
[1731789199741,0.054999,90850.0,90849.0,0.3608]
[1731789200327,0.054999,90850.0,90849.0,0.41587576]
[1731789200840,0.054998,90853.0,90849.0,0.48119523]
[1731789201138,0.054998,90853.0,90851.0,0.054998]
[1731789201335,0.054998,90853.0,90852.0,0.01031911]
[1731789201546,0.054998,90853.0,90852.0,0.05507576]
[1731789202031,0.054998,90853.0,90852.0,0.06539472]
[1731789202543,0.08812,90859.0,90852.0,0.17546323]
[1731789202737,0.08812,90859.0,90858.0,0.3608]
[1731789202930,0.054994,90860.0,90858.0,0.48118872]
[1731789203125,0.13614765,90874.0,90859.0,0.01031896]
[1731789203325,0.02209472,90880.0,90870.0,0.3608]
[1731789203326,0.054987,90871.0,90870.0,0.3608]
[1731789204635,0.054993,90861.0,90860.0,0.0327]
[1731789204850,0.054993,90861.0,90860.0,0.04301791]
[1731789205030,0.054993,90861.0,90860.0,0.01031791]
[1731789205233,0.054993,90861.0,90860.0,0.05507576]
[1731789209734,0.08812,90864.0,90860.0,0.05507576]
[1731789210057,0.143111,90864.0,90861.0,0.054993]
[1731789210340,0.054992,90863.0,90861.0,0.11006876]
[1731789211135,0.054992,90862.0,90861.0,0.11006876]
[1731789211949,0.054992,90862.0,90861.0,0.12038665]
[1731789212448,0.054992,90862.0,90861.0,0.06539365]
[1731789212636,0.14938956,90862.0,90861.0,0.05507576]
[1731789213041,0.054992,90862.0,90861.0,0.05507576]
[1731789217044,0.054992,90862.0,90861.0,0.0585152]
[1731789217547,0.05480405,90870.0,90861.0,0.0585152]
[1731789217548,0.05480405,90870.0,90861.0,0.1135082]
[1731789217853,0.054989,90867.0,90866.0,0.41579]
[1731789218049,0.054989,90867.0,90866.0,0.47086576]
[1731789218350,0.054989,90867.0,90866.0,0.48462228]
[1731789218645,0.054989,90867.0,90866.0,0.47430496]
[1731789219152,0.054989,90867.0,90866.0,0.41931496]
[1731789219447,0.054989,90867.0,90866.0,0.41931487]
[1731789220056,0.0302,90874.0,90872.0,0.054986]
[1731789220255,0.0302,90874.0,90873.0,0.00343911]
[1731789220256,0.054985,90874.0,90873.0,0.00343911]
[1731789222542,0.054985,90874.0,90873.0,0.01375567]
[1731789223146,0.054985,90874.0,90873.0,0.00343911]
[1731789223554,0.054985,90874.0,90873.0,0.01375567]
[1731789224741,0.054985,90874.0,90873.0,0.05842511]
[1731789224946,0.054985,90874.0,90873.0,0.06874138]
[1731789225750,0.08720449,90880.0,90879.0,0.054982]
[1731789225751,0.05506649,90880.0,90879.0,0.054982]
[1731789225948,0.05506649,90880.0,90879.0,0.41922111]
[1731789226444,0.05506649,90880.0,90879.0,0.51361867]
[1731789226646,8.449e-05,90880.0,90879.0,0.52393439]
[1731789228053,8.449e-05,90880.0,90879.0,0.52049528]
[1731789229056,8.449e-05,90880.0,90879.0,0.52393364]
[1731789229660,8.449e-05,90880.0,90879.0,0.52393362]
[1731789231258,8.449e-05,90880.0,90879.0,0.52049528]
[1731789232561,8.449e-05,90880.0,90879.0,0.63053109]
[1731789233162,8.449e-05,90880.0,90879.0,0.63396934]
[1731789234570,0.054976,90890.0,90889.0,0.054976]
[1731789234758,0.054976,90890.0,90889.0,0.42952997]
[1731789235155,0.054973,90894.0,90893.0,0.054972]
[1731789235355,0.054973,90894.0,90893.0,0.00343825]
[1731789235664,0.054975,90890.0,90889.0,0.00056]
[1731789235863,0.054981,90880.0,90879.0,0.3614]
[1731789236061,0.054981,90880.0,90879.0,0.37111485]
[1731789236969,0.054981,90880.0,90879.0,0.415782]
[1731789238369,0.08712,90890.0,90879.0,0.3608]
[1731789238568,0.054978,90886.0,90885.0,0.054976]
[1731789239273,0.054978,90886.0,90885.0,0.0652911]
[1731789239466,0.054975,90892.0,90891.0,0.054974]
[1731789239670,0.054975,90892.0,90891.0,0.415774]
[1731789241265,0.054975,90892.0,90891.0,0.3608]
[1731789242071,0.08722794,90894.0,90883.0,0.054979]
[1731789242367,0.054978,90885.0,90883.0,0.054979]
[1731789244269,0.08722794,90894.0,90883.0,0.054979]
[1731789244270,0.054979,90884.0,90883.0,0.054979]
[1731789244661,0.054979,90884.0,90883.0,0.06529416]
[1731789247381,0.08722794,90894.0,90883.0,0.06529416]
[1731789247560,0.08722794,90894.0,90884.0,0.01031516]
[1731789247767,0.054978,90886.0,90885.0,0.01375359]
[1731789249273,0.054978,90886.0,90885.0,0.06873159]
[1731789249477,0.054975,90891.0,90890.0,0.054974]
[1731789249773,0.054975,90891.0,90890.0,0.05841243]
[1731789250171,0.054975,90891.0,90890.0,0.054974]
[1731789250370,0.054975,90891.0,90890.0,0.05841224]
[1731789251773,0.054975,90891.0,90890.0,0.00343824]
[1731789252077,0.054975,90891.0,90890.0,0.26706442]
[1731789252375,0.054975,90891.0,90890.0,0.00343824]
[1731789252877,0.054975,90891.0,90883.0,0.62447469]
[1731789252878,0.18602265,90891.0,90883.0,0.62447469]
[1731789253075,0.18602265,90891.0,90883.0,0.3608]
[1731789253076,0.054979,90884.0,90883.0,0.3608]
[1731789253672,0.21884664,90884.0,90883.0,0.3608]
[1731789254177,0.16386764,90884.0,90883.0,0.41578]
[1731789254474,0.054979,90884.0,90883.0,0.41578]
[1731789255063,0.08788,90889.0,90883.0,0.41578]
[1731789255273,0.08788,90889.0,90883.0,0.3608]
[1731789255570,0.054979,90884.0,90883.0,0.3608]
[1731789256477,0.16412478,90887.0,90885.0,0.054978]
[1731789257473,0.054978,90886.0,90885.0,0.054978]
[1731789257677,0.054978,90886.0,90883.0,0.3608]
[1731789257678,0.054979,90884.0,90883.0,0.3608]
[1731789258172,0.16412478,90888.0,90883.0,0.3608]
[1731789258371,0.25200478,90889.0,90888.0,0.054976]
[1731789258567,0.08788,90889.0,90888.0,0.054976]
[1731789258880,0.142856,90889.0,90888.0,0.054976]
[1731789260870,0.16412478,90892.0,90888.0,0.09439756]
[1731789261070,0.00010794,90894.0,90893.0,0.054973]
[1731789261275,0.00010794,90894.0,90893.0,0.3794767]
[1731789261469,0.05592501,90907.0,90893.0,0.3794767]
[1731789261470,0.054965,90907.0,90893.0,1.02889955]
[1731789261774,0.054965,90907.0,90906.0,0.51016356]
[1731789263292,0.054965,90907.0,90906.0,0.77355311]
[1731789263675,0.054965,90907.0,90906.0,0.78386596]
[1731789264282,0.054965,90907.0,90906.0,0.52047641]
[1731789264881,0.054965,90907.0,90906.0,0.52391397]
[1731789265275,0.054965,90907.0,90906.0,0.52047641]
[1731789266278,0.054965,90907.0,90906.0,0.523914]
[1731789266483,0.0331,90909.0,90908.0,0.054964]
[1731789266790,0.0331,90909.0,90908.0,0.0687141]
[1731789267481,0.0331,90909.0,90908.0,0.06871396]
[1731789267677,0.054963,90911.0,90908.0,0.06871396]
[1731789267678,0.00011158,90912.0,90911.0,0.054963]
[1731789267877,0.054955,90924.0,90923.0,0.054955]
[1731789268086,0.05501753,90925.0,90923.0,0.41919245]
[1731789268284,0.0302,90929.0,90924.0,0.00343745]
[1731789268592,0.0302,90929.0,90925.0,0.00343745]
[1731789268892,0.08953037,90930.0,90925.0,0.00343745]
[1731789268893,0.00088001,90935.0,90933.0,0.054949]
[1731789269084,0.08797088,90938.0,90933.0,0.36423745]
[1731789269283,0.08797088,90938.0,90935.0,0.054948]
[1731789269284,0.054947,90937.0,90935.0,0.054948]
[1731789269485,0.054947,90937.0,90936.0,0.00343745]
[1731789270201,0.08797088,90938.0,90937.0,0.054947]
[1731789270396,0.08797088,90938.0,90937.0,0.05838445]
[1731789270983,0.08797088,90938.0,90937.0,0.05838359]
[1731789271182,0.08797088,90938.0,90937.0,0.054947]
[1731789272484,0.08797088,90938.0,90937.0,0.05838347]
[1731789273384,0.08797088,90938.0,90937.0,0.00343647]
[1731789273586,0.054961,90914.0,90911.0,0.054962]
[1731789273893,0.054961,90914.0,90912.0,0.054962]
[1731789277297,0.054961,90914.0,90913.0,0.01031183]
[1731789281990,0.0316,90919.0,90917.0,0.054959]
[1731789282297,0.0316,90919.0,90917.0,0.415759]
[1731789283097,0.0316,90919.0,90918.0,0.01031143]
[1731789283391,0.086558,90919.0,90918.0,0.01031142]
[1731789283596,0.086558,90919.0,90917.0,0.416319]
[1731789283800,0.086558,90919.0,90918.0,0.01031148]
[1731789284189,0.086558,90919.0,90917.0,0.416359]
[1731789284390,0.086558,90919.0,90917.0,0.415759]
[1731789286110,0.086558,90919.0,90918.0,0.01031153]
[1731789286608,0.086558,90919.0,90917.0,0.415759]
[1731789287297,0.086558,90919.0,90917.0,0.61258629]
[1731789287504,0.086558,90919.0,90918.0,0.00343719]
[1731789288591,0.086558,90919.0,90905.0,0.19682729]
[1731789288906,0.086558,90919.0,90905.0,0.25190305]
[1731789289095,0.086558,90919.0,90906.0,0.19682729]
[1731789289096,0.0316,90919.0,90906.0,0.19682729]
[1731789289296,0.054964,90908.0,90906.0,0.25190305]
[1731789289497,0.085265,90907.0,90906.0,0.05507576]
[1731789289701,0.085265,90907.0,90906.0,0.05851352]
[1731789291610,0.085265,90907.0,90906.0,0.05507576]
[1731789295500,0.1409242,90907.0,90906.0,0.05507576]
[1731789296502,0.1409242,90907.0,90906.0,0.25252754]
[1731789296702,0.1409242,90907.0,90906.0,0.05507576]
[1731789297217,0.1409242,90907.0,90906.0,0.25252698]
[1731789297405,0.1106242,90907.0,90906.0,0.05507576]
[1731789297718,0.1106242,90907.0,90906.0,0.12035466]
[1731789297916,0.1106242,90907.0,90906.0,0.38347464]
[1731789298114,0.1106242,90907.0,90906.0,0.12035466]
[1731789298415,0.08636,90912.0,90911.0,0.054963]
[1731789298710,0.141322,90912.0,90911.0,0.15279809]
[1731789299218,0.05496,90916.0,90915.0,0.054959]
[1731789299407,0.05496,90916.0,90915.0,0.41919653]
[1731789300514,0.08584622,90918.0,90917.0,0.054959]
[1731789300710,0.18715532,90922.0,90917.0,0.00343736]
[1731789300910,0.18715532,90922.0,90915.0,0.47079224]
[1731789300911,0.13131931,90925.0,90918.0,0.09783492]
[1731789301105,0.0016502,90926.0,90924.0,0.45519756]
[1731789301106,0.18898627,90926.0,90924.0,0.45519756]
[1731789301311,0.13277726,90926.0,90925.0,0.05839136]
[1731789301603,0.0016502,90926.0,90925.0,0.06870223]
[1731789301799,0.18607506,90936.0,90933.0,0.054949]
[1731789302006,9.088e-05,90938.0,90935.0,0.3608]
[1731789302200,9.088e-05,90938.0,90937.0,0.054947]
[1731789302407,9.088e-05,90938.0,90937.0,0.05838436]
[1731789302615,0.05503688,90938.0,90937.0,0.05838436]
[1731789303209,0.05503688,90938.0,90937.0,0.05838348]
[1731789303717,0.05503688,90938.0,90937.0,0.05838344]
[1731789303905,0.05503688,90938.0,90937.0,0.00343644]
[1731789305212,0.21916166,90938.0,90937.0,0.00343644]
[1731789305411,0.05503688,90938.0,90937.0,0.00343644]
[1731789306318,0.18617205,90938.0,90937.0,0.00343644]
[1731789307513,0.05503688,90938.0,90937.0,0.00343644]
[1731789308209,0.18618084,90938.0,90937.0,0.00343644]
[1731789308415,0.05503688,90938.0,90937.0,0.00343644]
[1731789309024,0.18618003,90938.0,90937.0,0.00343644]
[1731789309922,0.05503688,90938.0,90937.0,0.00343644]
[1731789310530,0.18616711,90938.0,90937.0,0.00343644]
[1731789310837,0.05503688,90938.0,90937.0,0.00343644]
[1731789313921,0.18613786,90938.0,90937.0,0.00343644]
[1731789314227,0.05503688,90938.0,90937.0,0.00343676]
[1731789314429,9.088e-05,90938.0,90937.0,0.00343676]
[1731789314619,9.088e-05,90938.0,90937.0,0.05838376]
[1731789314923,9.088e-05,90938.0,90937.0,0.06388258]
[1731789315123,9.088e-05,90938.0,90937.0,0.06388196]
[1731789315528,9.088e-05,90938.0,90937.0,0.17384759]
[1731789315728,0.16922478,90950.0,90937.0,0.17384759]
[1731789315729,0.22148098,90950.0,90937.0,0.18415657]
[1731789315918,0.08528,90950.0,90948.0,0.05494]
[1731789316118,0.13960583,90950.0,90949.0,0.00893496]
[1731789316326,0.13960583,90950.0,90949.0,0.05861496]
[1731789318220,0.41512583,90950.0,90949.0,0.05861496]
[1731789318418,0.41512583,90950.0,90949.0,0.00493882]
[1731789318419,0.66344561,90950.0,90949.0,0.00493882]
[1731789318630,0.86234583,90950.0,90928.0,0.3608]
[1731789318832,0.054952,90930.0,90929.0,0.01031057]
[1731789319132,0.054955,90923.0,90922.0,0.0323]
[1731789319325,0.054955,90923.0,90922.0,0.40341114]
[1731789319526,0.13603078,90936.0,90923.0,0.10995112]
[1731789319729,0.13603078,90936.0,90922.0,0.40341114]
[1731789319730,0.054952,90928.0,90924.0,0.054955]
[1731789320233,0.054952,90928.0,90925.0,0.06526474]
[1731789320425,0.054952,90928.0,90926.0,0.01031074]
[1731789320733,0.054952,90928.0,90926.0,0.00498]
[1731789321035,0.054952,90928.0,90927.0,0.01031049]
[1731789321335,0.054952,90928.0,90927.0,0.01529049]
[1731789323032,0.054949,90934.0,90933.0,0.054949]
[1731789323233,0.08528,90935.0,90933.0,0.415749]
[1731789323433,0.08528,90935.0,90933.0,0.420729]
[1731789323931,0.13972535,90935.0,90933.0,0.420729]
[1731789324132,0.13972535,90935.0,90934.0,0.00161644]
[1731789324325,0.13972535,90935.0,90934.0,0.00659644]
[1731789324527,0.0317,90940.0,90938.0,0.054946]
[1731789324732,0.0325,90949.0,90943.0,0.054943]
[1731789324733,0.054943,90944.0,90943.0,0.054943]
[1731789325034,0.054943,90944.0,90943.0,0.06153979]
[1731789325335,0.054943,90944.0,90943.0,0.059923]
[1731789326226,0.054939,90950.0,90946.0,0.054941]
[1731789326423,0.05494,90949.0,90948.0,0.00161708]
[1731789326630,0.05494,90949.0,90948.0,0.00659708]
[1731789326836,0.05494,90949.0,90948.0,0.00498]
[1731789327838,0.13953575,90954.0,90948.0,0.00498]
[1731789327839,0.05425575,90954.0,90948.0,0.00509639]
[1731789328031,0.05425575,90954.0,90952.0,0.41735444]
[1731789328338,0.05425575,90954.0,90953.0,0.0054975]
[1731789328542,0.05425575,90954.0,90953.0,0.0104775]
[1731789329035,0.05425575,90954.0,90953.0,0.01734934]
[1731789330343,0.05425575,90954.0,90953.0,0.02078522]
[1731789330542,0.00164985,90956.0,90953.0,0.03452823]
[1731789330749,0.00164985,90956.0,90954.0,0.08610244]
[1731789331044,0.00164985,90956.0,90955.0,0.01580522]
[1731789331237,0.00164985,90956.0,90955.0,0.03452826]
[1731789334737,0.00164985,90956.0,90955.0,0.03452733]
[1731789334936,0.00164985,90956.0,90955.0,0.03452729]
[1731789335949,0.00164985,90956.0,90955.0,0.02765584]
[1731789336339,0.17975756,90956.0,90955.0,0.01391288]
[1731789336645,0.17975756,90956.0,90948.0,0.00011639]
[1731789336856,0.14933756,90949.0,90948.0,0.00011639]
[1731789337545,0.054949,90933.0,90932.0,0.36136]
[1731789337741,0.054949,90933.0,90932.0,0.3608]
[1731789338653,0.054949,90933.0,90932.0,0.36092749]
[1731789339140,0.054949,90933.0,90932.0,0.41594749]
[1731789343553,0.054949,90933.0,90932.0,0.61309391]
[1731789346046,0.054949,90933.0,90932.0,0.41594749]
[1731789346657,0.054949,90933.0,90932.0,0.42144647]
[1731789348757,0.054949,90933.0,90932.0,0.42488332]
[1731789349665,0.0051,90946.0,90932.0,0.72311374]
[1731789349867,0.0312,90948.0,90945.0,0.3608]
[1731789350058,0.0312,90948.0,90947.0,0.19718594]
[1731789350263,0.0312,90948.0,90947.0,0.06395589]
[1731789351054,0.0312,90948.0,90947.0,0.0655616]
[1731789351665,0.0312,90948.0,90947.0,0.06395589]
[1731789352764,0.0312,90948.0,90947.0,0.06395425]
[1731789356178,0.0312,90948.0,90947.0,0.06395388]
[1731789356863,0.08536,90955.0,90954.0,0.054937]
[1731789357061,0.08536,90955.0,90954.0,0.12049571]
[1731789358363,0.10994582,90956.0,90954.0,0.12049571]
[1731789358569,0.10994582,90956.0,90955.0,0.00893388]
[1731789358779,0.10994582,90956.0,90955.0,0.06395388]
[1731789363881,0.054943,90943.0,90942.0,0.19724357]
[1731789364087,0.08444,90943.0,90940.0,0.19724357]
[1731789364285,0.054944,90941.0,90936.0,0.19724357]
[1731789364873,0.054948,90935.0,90933.0,0.26311998]
[1731789365084,0.054948,90935.0,90934.0,0.054949]
[1731789365383,0.054948,90935.0,90934.0,0.31806898]
[1731789365579,0.0317,90942.0,90932.0,0.36253323]
[1731789365580,0.054949,90934.0,90933.0,0.1973078]
[1731789365776,0.054949,90934.0,90932.0,0.36253365]
[1731789365977,0.054949,90934.0,90932.0,0.36092749]
[1731789366169,0.054949,90934.0,90932.0,0.41597417]
[1731789367378,0.10890339,90934.0,90932.0,0.41597417]
[1731789367888,0.10890339,90934.0,90932.0,0.36092749]
[1731789368687,0.10890339,90934.0,90932.0,0.36253407]
[1731789369291,0.10890339,90934.0,90932.0,0.41597417]
[1731789370777,0.32992,90933.0,90932.0,0.00160601]
[1731789371078,0.054957,90920.0,90918.0,0.00164965]
[1731789371280,0.11724,90919.0,90918.0,0.00164965]
[1731789372474,0.11724,90919.0,90918.0,0.05669633]
[1731789372676,0.11724,90919.0,90918.0,0.00164965]
[1731789373876,0.11724,90919.0,90918.0,0.00715014]
[1731789374481,0.11724,90919.0,90892.0,0.32950433]
[1731789374482,0.32996,90918.0,90894.0,0.1973078]
[1731789374677,0.054972,90895.0,90894.0,0.05504668]
[1731789374876,0.054972,90895.0,90894.0,0.07086242]
[1731789375494,0.054972,90895.0,90894.0,0.07100308]
[1731789375892,0.054972,90895.0,90894.0,0.07444116]
[1731789376192,0.054972,90895.0,90894.0,0.07444083]
[1731789376582,0.054972,90895.0,90894.0,0.0744409]
[1731789377590,0.054972,90895.0,90894.0,0.07604252]
[1731789378182,0.054972,90895.0,90894.0,0.0744409]
[1731789383093,0.054972,90895.0,90894.0,0.06412632]
[1731789383685,0.054972,90895.0,90894.0,0.07444082]
[1731789385186,0.054972,90895.0,90894.0,0.07444086]
[1731789385386,0.054972,90895.0,90894.0,0.06412632]
[1731789385891,0.054972,90895.0,90894.0,0.05518734]
[1731789386084,0.054972,90895.0,90894.0,0.06412697]
[1731789387689,0.139452,90895.0,90894.0,0.06412697]
[1731789388289,0.054972,90895.0,90894.0,0.06412697]
[1731789388484,0.139452,90895.0,90894.0,0.06412697]
[1731789388791,0.054972,90895.0,90894.0,0.06412697]
[1731789389496,0.08448,90897.0,90894.0,0.06412697]
[1731789389696,0.08448,90897.0,90895.0,0.0655145]
[1731789390004,0.139451,90897.0,90895.0,0.11001868]
[1731789390191,0.054971,90897.0,90896.0,0.01054241]
[1731789390391,0.054971,90897.0,90896.0,0.00893951]
[1731789390592,0.054971,90897.0,90896.0,0.06398619]
[1731789393498,0.054971,90897.0,90896.0,0.06398606]
[1731789395400,0.08584923,90900.0,90896.0,0.17400129]
[1731789395401,8.923e-05,90900.0,90896.0,0.17400129]
[1731789395586,8.923e-05,90900.0,90899.0,0.19740389]
[1731789395791,8.923e-05,90900.0,90899.0,0.26138995]
[1731789395996,8.923e-05,90900.0,90899.0,0.06398606]
[1731789398600,8.923e-05,90900.0,90899.0,0.06398579]
[1731789400596,8.923e-05,90900.0,90899.0,0.32710577]
[1731789400796,8.923e-05,90900.0,90899.0,0.32710572]
[1731789401509,8.923e-05,90900.0,90899.0,0.32766738]
[1731789402814,8.923e-05,90900.0,90899.0,0.06398574]
[1731789403717,8.923e-05,90900.0,90899.0,0.26181482]
[1731789404399,0.054969,90901.0,90899.0,0.26181482]
[1731789404400,0.054969,90901.0,90899.0,0.06398584]
[1731789404597,0.054969,90901.0,90900.0,0.20472285]
[1731789404798,0.054969,90901.0,90900.0,0.25976953]
[1731789405117,0.054969,90901.0,90900.0,0.06398584]
[1731789412013,0.054969,90901.0,90900.0,0.3277862]
[1731789412316,0.054969,90901.0,90900.0,0.06398584]
[1731789412515,0.054969,90901.0,90900.0,0.32779464]
[1731789412815,0.054969,90901.0,90900.0,0.06398584]
[1731789413207,0.054969,90901.0,90900.0,0.32779464]
[1731789413421,0.054969,90901.0,90900.0,0.06398584]
[1731789414006,0.054969,90901.0,90900.0,0.32779464]
[1731789414211,0.054969,90901.0,90900.0,0.32779944]
[1731789414516,0.054969,90901.0,90900.0,0.06398584]
[1731789417907,0.054969,90901.0,90900.0,0.17399623]
[1731789418417,0.054969,90901.0,90900.0,0.18087227]
[1731789419009,0.054969,90901.0,90900.0,0.18087196]
[1731789420523,0.054969,90901.0,90900.0,0.17399592]
[1731789421427,0.054969,90901.0,90900.0,0.16505707]
[1731789421617,0.054969,90901.0,90900.0,0.1739961]
[1731789422218,0.21863247,90901.0,90900.0,0.06398571]
[1731789422519,0.054969,90901.0,90900.0,0.06398571]
[1731789422920,0.10844609,90901.0,90900.0,0.06398571]
[1731789424618,0.21927358,90901.0,90900.0,0.06398571]
[1731789425028,0.054969,90901.0,90900.0,0.06398571]
[1731789425616,0.10844467,90901.0,90900.0,0.06398571]
[1731789425929,0.054969,90901.0,90900.0,0.06398571]
[1731789428317,0.17850314,90901.0,90900.0,0.06398571]
[1731789428521,0.28103776,90901.0,90900.0,0.06398642]
[1731789428821,0.11673607,90901.0,90900.0,0.06398642]
[1731789432331,0.17850314,90901.0,90900.0,0.06398641]
[1731789432729,0.23198528,90901.0,90900.0,0.06398641]
[1731789432926,0.23198528,90901.0,90900.0,0.00458755]
[1731789434629,0.17850314,90901.0,90900.0,0.00458755]
[1731789434829,0.34260006,90901.0,90900.0,0.00458755]
[1731789436324,0.17850314,90901.0,90900.0,0.00458755]
[1731789437532,0.17850314,90901.0,90900.0,5.5e-07]
[1731789437731,0.23198686,90901.0,90900.0,5.5e-07]
[1731789438129,0.42893659,90901.0,90900.0,5.5e-07]
[1731789438330,0.23198686,90901.0,90894.0,0.00014066]
[1731789438629,0.11673907,90895.0,90894.0,0.00014066]
[1731789438817,0.20121907,90895.0,90894.0,0.00014066]
[1731789439021,0.23371907,90895.0,90894.0,0.00014066]
[1731789440745,0.28720543,90895.0,90894.0,0.00014066]
[1731789442345,0.28720543,90895.0,90894.0,1.082e-05]
[1731789444946,0.28720543,90895.0,90894.0,0.00344966]
[1731789446245,0.28720543,90895.0,90894.0,1.082e-05]
[1731789446440,0.28720507,90895.0,90894.0,0.00344967]
[1731789446641,0.39757098,90895.0,90894.0,0.00344967]
[1731789446842,0.23371907,90895.0,90894.0,0.00344967]
[1731789447337,0.39757098,90895.0,90894.0,0.00344967]
[1731789447547,0.39757098,90895.0,90894.0,0.00895161]
[1731789447743,0.054972,90895.0,90894.0,0.00895161]
[1731789448144,0.054972,90895.0,90894.0,0.00961161]
[1731789448345,0.054972,90895.0,90894.0,0.00895161]
[1731789449646,0.054972,90895.0,90894.0,0.00961161]
[1731789450256,0.054972,90895.0,90894.0,0.00410942]
[1731789450464,0.054972,90895.0,90894.0,0.00961118]
[1731789450646,0.054972,90895.0,90894.0,0.00895118]
[1731789451045,0.054972,90895.0,90894.0,0.00344942]
[1731789451278,0.054972,90895.0,90882.0,0.0333]
[1731789451279,0.61063244,90895.0,90875.0,0.26395076]
[1731789451454,0.61063244,90895.0,90871.0,0.26395076]
[1731789451455,0.12353414,90876.0,90871.0,0.26395076]
[1731789451750,0.12353414,90876.0,90858.0,0.4272052]
[1731789451751,0.06176707,90872.0,90860.0,0.26395076]
[1731789451957,0.06176707,90861.0,90859.0,0.26395076]
[1731789452159,0.054993,90860.0,90858.0,0.0318]
[1731789452452,0.06176707,90859.0,90858.0,0.0318]
[1731789452655,0.06176707,90859.0,90858.0,0.03258999]
[1731789453748,0.054993,90860.0,90858.0,0.03258999]
[1731789454461,0.10947944,90860.0,90858.0,0.03258999]
[1731789458752,0.0362,90875.0,90859.0,0.11006064]
[1731789458947,0.0362,90875.0,90865.0,0.3608]
[1731789458948,0.08448,90874.0,90865.0,0.3608]
[1731789459148,0.054987,90871.0,90866.0,0.06176707]
[1731789459348,0.054987,90870.0,90867.0,0.054989]
[1731789459553,0.054987,90870.0,90867.0,0.16504964]
[1731789459751,0.054988,90869.0,90867.0,0.16570964]
[1731789460156,0.054984,90875.0,90873.0,0.054985]
[1731789460363,0.054984,90875.0,90874.0,0.0642]
[1731789460664,0.054981,90881.0,90879.0,0.054982]
[1731789461153,0.054981,90881.0,90879.0,0.055642]
[1731789461346,0.054981,90881.0,90880.0,0.00550179]
[1731789461748,0.054981,90881.0,90880.0,0.00616179]
[1731789462956,0.054981,90881.0,90880.0,0.11619639]
[1731789463461,0.054981,90881.0,90880.0,0.119635]
[1731789464445,0.054981,90881.0,90880.0,0.12995074]
[1731789464959,0.054981,90881.0,90880.0,0.119635]
[1731789465347,0.08448,90883.0,90880.0,0.119635]
[1731789465544,0.08448,90883.0,90882.0,0.3608]
[1731789465747,0.08448,90883.0,90882.0,0.3704004]
[1731789466453,0.08448,90883.0,90882.0,0.48043258]
[1731789467064,0.054979,90884.0,90882.0,0.53541258]
[1731789467357,0.054979,90884.0,90883.0,0.0089404]
[1731789467550,0.054979,90884.0,90883.0,0.0096004]
[1731789470262,0.13110733,90896.0,90883.0,0.44971137]
[1731789470472,0.19694973,90906.0,90895.0,0.3608]
[1731789470473,0.05619677,90901.0,90895.0,0.3608]
[1731789470664,0.11116577,90901.0,90899.0,0.05497]
[1731789470864,0.11116577,90901.0,90900.0,0.00893914]
[1731789471162,0.11116577,90901.0,90900.0,0.00893878]
[1731789471368,0.054969,90901.0,90900.0,0.00893878]
[1731789471662,0.00011325,90909.0,90900.0,0.00893878]
[1731789471865,0.00011325,90909.0,90904.0,0.054967]
[1731789471866,0.054966,90905.0,90904.0,0.054967]
[1731789472068,0.054966,90905.0,90904.0,0.42470578]
[1731789472365,0.05420298,90909.0,90908.0,0.054964]
[1731789472568,0.00011325,90909.0,90908.0,0.06390278]
[1731789473360,0.00011325,90909.0,90908.0,0.00893878]
[1731789473766,0.00011325,90909.0,90877.0,0.32950433]
[1731789473767,0.054972,90895.0,90877.0,0.32950433]
[1731789473970,0.054994,90859.0,90858.0,0.00012999]
[1731789474164,0.14914839,90859.0,90858.0,0.00012999]
[1731789475669,0.14914839,90859.0,90858.0,0.00078999]
[1731789476057,0.054994,90859.0,90858.0,0.00078999]
[1731789480677,0.00088001,90870.0,90858.0,0.11085123]
[1731789480858,0.054987,90870.0,90869.0,0.3608]
[1731789481059,0.054987,90870.0,90869.0,0.19570639]
[1731789481262,0.054987,90870.0,90869.0,0.19636639]
[1731789481459,0.054987,90870.0,90869.0,0.30642097]
[1731789481667,0.08448,90882.0,90869.0,0.32017709]